Cogmind - Beta 15 @@@ ROGUE MODE // 2025.09.26 @ 17:52:59 Player: bluemonk Result: Destroyed by G-67 Veteran with Field Laser Performance ------------- Evolutions (4) 2000 Regions Visited (5) 1000 Robots Destroyed (164) 820 Value Destroyed (5704) 5704 Prototype IDs (13) 260 Alien Tech Used (0) 0 Bonus (670) 670 TOTAL SCORE: 10454 Bonus ------- High Alert Combat Kills 650 Follower Combat Kills 20 Cogmind --------- Core Integrity 0/850 Matter 282/300 Energy 649/1050 System Corruption 31% Temperature Cool (12) Movement Treading (240) Ox1 Location -6/Factory Parts ------- > --- POWER (2) -------- Light Ion Engine Light Ion Engine > --- PROPULSION (3) --- Light Treads Light Treads > --- UTILITY (7) ------ Medium Storage Unit Compact Battery Energy Well Energy Well Terrain Scanner Matter Filter Energy Filter > --- WEAPON (3) ------- Improved EM Pulse Cannon Hypervelocity Gauss Rifle > --- INVENTORY (10) --- Improved Deuterium Engine Fusion Compressor Weapon Cycler Compact Ion Cannon Peak State ------------ > --- POWER ------------ Angular Momentum Engine Fusion Compressor > --- PROPULSION ------- Medium Treads Improved Medium Treads Improved Medium Treads > --- UTILITY ---------- Power Amplifier Advanced Heat Sink Advanced Heat Sink Advanced Heat Sink Large Storage Unit Advanced Targeting Computer Weapon Cycler > --- WEAPON ----------- Compact Ion Cannon Compact Ion Cannon Compact Ion Cannon > --- INVENTORY -------- Improved Deuterium Engine Angular Momentum Engine Light Treads Light Treads Light Treads Medium Treads Energy Well Energy Well Energy Well Energy Well System Restoration Module Hypervelocity Gauss Rifle Hypervelocity Gauss Rifle Hypervelocity Gauss Rifle Hypervelocity Gauss Rifle [Rating: 76] Favorites ----------- Power Heavy Ion Engine Engine Heavy Ion Engine Power Core Fission Core Propulsion Light Treads Treads Light Treads Utility Large Storage Unit Device Advanced Heat Sink Storage Large Storage Unit Processor Advanced Targeting Computer Weapon Heavy Machine Gun Energy Gun Particle Gun Energy Cannon Compact Ion Cannon Ballistic Gun Heavy Machine Gun Launcher Missile Launcher Build | -11 -10 -9 -8 -7 -6 ------- Run | Yrd Mat Mat Mat Fac Fac Slots Evolved 8 | . . 2 2 2 2 Power 1 | . . . . 1 . Propulsion 1 | . . . 1 . . Utility 5 | . . 2 . 1 2 Weapon 1 | . . . 1 . . Parts Attached 113 | 6 8 14 12 5 68 Power 18 | 1 1 2 . 3 11 Engine 15 | 1 1 2 . 2 9 Core 3 | . . . . 1 2 Reactor . | . . . . . . Propulsion 23 | 2 1 2 6 . 12 Treads 23 | 2 1 2 6 . 12 Leg . | . . . . . . Wheel . | . . . . . . Hover . | . . . . . . Flight . | . . . . . . Utility 35 | 1 3 3 3 1 24 Device 19 | . 1 . . 1 17 Storage 12 | 1 1 2 2 . 6 Processor 4 | . 1 1 1 . 1 Hackware . | . . . . . . Protection . | . . . . . . Artifact . | . . . . . . Weapon 37 | 2 3 7 3 1 21 Energy Gun 13 | 1 2 3 1 . 6 Energy Cannon 11 | . . 1 1 . 9 Ballistic Gun 10 | 1 1 1 . 1 6 Ballistic Cannon . | . . . . . . Launcher 3 | . . 2 1 . . Special Weapon . | . . . . . . Impact Weapon . | . . . . . . Slashing Weapon . | . . . . . . Piercing Weapon . | . . . . . . Special Melee Weapon . | . . . . . . Unidentified Prototypes 9 | . 1 4 . . 4 Parts Lost 59 | . . 5 3 . 51 Power 9 | . . 1 . . 8 Propulsion 15 | . . 2 . . 13 Utility 21 | . . 1 1 . 19 Weapon 14 | . . 1 2 . 11 Highest Loss Streak 11 | . . 3 1 . 11 To Critical Strikes 3 | . . . . . 3 Average Backups 12 | 2 12 14 14 13 11 Power 2 | . 2 2 3 2 2 Propulsion 3 | 1 3 3 3 4 2 Utility 3 | . 2 3 3 3 3 Weapon 3 | . 3 3 3 3 3 Tool/Special . | . . . . . . Unused Backups 40 | . 7 14 3 2 14 Power 11 | . 2 3 . 1 5 Propulsion 8 | . 2 3 2 . 1 Utility 9 | . 1 3 1 . 4 Weapon 12 | . 2 5 . 1 4 Tool/Special . | . . . . . . Average Slot Usage (%) 96 | . 96 99 99 99 93 Engine 9 | . 14 11 9 9 7 Core 1 | . . . . 4 3 Treads 20 | . 28 21 27 23 16 Device 13 | . 10 2 . 7 23 Storage 20 | . 14 32 27 23 14 Processor 6 | . . 8 9 7 5 Energy Gun 8 | . 21 10 9 7 3 Energy Cannon 4 | . . . . 6 8 Ballistic Gun 5 | . 7 . 8 7 6 Launcher 3 | . . 9 8 . . Peak Build Rating 76 | 6 14 20 34 42 76 Average Rating 38 | 4 11 18 31 40 58 On Entrance 19 | . 6 13 20 33 42 Naked Turns . | . . . . . . Heaviest Build 75 | 12 35 44 47 51 75 Greatest Support 88 | 40 40 40 62 62 88 Greatest Overweight (x) 24 | 1 1 1 . . 24 Average Overweight (x) . | . . . . . . Largest Inventory Capacity 15 | 8 15 15 15 15 15 Average Capacity 14 | 6 13 15 15 15 14 Most Carried 15 | 6 15 15 15 15 15 Average Carried 12 | 2 12 14 14 13 11 Final Capacity 15 | 8 15 15 15 15 10 Final Carried 15 | 6 15 14 13 15 4 Class Distribution -------------------- 40% | Mutant 39% | Gunner 18% | Scavenger-Gunner Dominant Class ---------------- Mutant | -10/Materials Mutant | -9/Materials Gunner | -8/Materials Gunner | -7/Factory Gunner | -6/Factory Resources | -11 -10 -9 -8 -7 -6 ----------- Run | Yrd Mat Mat Mat Fac Fac Matter Collected 3614 | 226 215 590 402 316 1865 Remotely 976 | . . . . . 976 Salvage Created 6710 | . 354 814 652 437 4453 Parts 341 | . 31 40 39 33 198 Haulers Intercepted 8 | . 2 4 1 . 1 Recyclers Shooed 10 | . 1 1 . . 8 Parts Field Recycled . | . . . . . . Retrieved Matter . | . . . . . . Parts Self-Destructed . | . . . . . . Prevented . | . . . . . . Kills | -11 -10 -9 -8 -7 -6 ------- Run | Yrd Mat Mat Mat Fac Fac Combat Hostiles Destroyed 118 | . 12 17 17 9 63 Guns 58 | . 12 9 5 5 27 Cannons 37 | . . 1 . 3 33 AOE 20 | . . 7 12 . 1 Classes Destroyed 18 | . 4 6 1 1 6 Worker 8 | . . . 2 2 4 Builder 6 | . . 1 1 . 4 Tunneler 1 | . . 1 . . . Hauler 8 | . 2 4 1 . 1 Recycler 6 | . . 1 1 . 4 Carrier 1 | . . . . . 1 Mechanic 1 | . . . . . 1 Operator 2 | . . 1 . . 1 Watcher 13 | . 1 5 1 . 6 Swarmer 30 | . 9 . 4 2 15 Grunt 46 | . 3 9 9 4 21 Brawler 4 | . . . . . 4 Duelist 5 | . . 2 . . 3 Sentry 19 | . . 6 4 2 7 Specialist 2 | . . . . . 2 Hunter 3 | . . . . . 3 Programmer 8 | . . . . 1 7 Behemoth 1 | . . . . . 1 Best Kill Streak 15 | . 5 5 7 3 15 Combat Bots Only 7 | . 5 3 5 3 7 Max Kills in Single Turn 4 | . 1 3 4 1 2 Gunslinging . | . . . . . . Exploded 4 | . . 2 4 . 1 Melee . | . . . . . . Uniques/NPCs Destroyed . | . . . . . . Combat | -11 -10 -9 -8 -7 -6 -------- Run | Yrd Mat Mat Mat Fac Fac Hostile Shots Fired 788 | . 73 73 43 74 525 Missed 260 | . 23 17 10 33 177 Hits 528 | . 50 56 33 41 348 Melee 32 | . . 4 . . 28 Projectile 496 | . 50 52 33 41 320 Critical Strikes 22 | . 1 3 2 . 16 Part Disruptions 1 | . . . . . 1 Damage Taken 8357 | . 472 793 512 399 6181 Core 1192 | . 123 150 31 30 858 Absorbed by Shields . | . . . . . . Regen/Repaired (Parts) 125 | . . . . . 125 Core Remaining (%) 80 | 100 50 62 94 95 . Volleys Fired 349 | . 50 62 26 23 188 Largest 3 | . 2 2 3 3 3 Hottest 270 | . 130 130 160 160 270 Shots Fired 895 | . 96 112 76 68 543 Gun 535 | . 96 67 52 45 275 Cannon 304 | . . 6 7 23 268 Launcher 56 | . . 39 17 . . Special . | . . . . . . Kinetic 272 | . 27 6 26 23 190 Thermal 498 | . 69 67 33 45 284 Explosive 56 | . . 39 17 . . Electromagnetic 69 | . . . . . 69 Robot Hit Streak 17 | . 4 17 10 12 16 Robot Miss Streak 7 | . 5 7 3 4 7 Penetration Max 2 | . . . . . 2 Secondary Targets 8 | . 2 1 . . 5 Max Gunslinging Chain 1 | . 1 1 . . 1 Shots Hit Robots 543 | . 40 78 49 38 338 Core Hits 269 | . 17 41 39 21 151 Critical Kills 14 | . . . . 1 13 Critical Parts Destroyed 15 | . . . 1 . 14 Critical Strikes 38 | . 2 2 3 1 30 Burn 6 | . 2 2 2 . . Meltdown 2 | . . . . 1 1 Destroy 29 | . . . 1 . 28 Corrupt 1 | . . . . . 1 Melee Attacks . | . . . . . . Impact . | . . . . . . Slashing . | . . . . . . Piercing . | . . . . . . Sneak Attacks . | . . . . . . Combat Hostiles . | . . . . . . Follow-up Attacks . | . . . . . . Damage Inflicted 15324 | . 641 2440 2029 798 9416 Guns 5738 | . 641 708 559 467 3363 Cannons 6263 | . . 81 63 331 5788 Explosions 3312 | . . 1651 1405 . 256 Melee . | . . . . . . Ramming 11 | . . . 2 . 9 Kinetic 2910 | . 144 80 275 184 2227 Thermal 8181 | . 497 709 347 614 6014 Explosive 3312 | . . 1651 1405 . 256 Electromagnetic 910 | . . . . . 910 Impact . | . . . . . . Slashing . | . . . . . . Piercing . | . . . . . . Highest Corruption 31 | . . . 1 . 31 Average Corruption 4 | . . . 1 . 4 Corruption Purged 1 | . . . . . 1 Corruption Blocked . | . . . . . . Effects 51 | . . . . . 51 Message Errors 13 | . . . . . 13 Matter Fused 10 | . . . . . 10 Heat Flow Errors 6 | . . . . . 6 Energy Discharges 4 | . . . . . 4 Data Loss (minor) 5 | . . . . . 5 Data Loss (major) 3 | . . . . . 3 Misfires 5 | . . . . . 5 Alerts 2 | . . . . . 2 Misdirections 1 | . . . . . 1 Weapon Failures 2 | . . . . . 2 Overload Shots . | . . . . . . Overflow Damage 307 | . . 90 73 . 144 Projectiles 141 | . . . . . 141 Explosions 166 | . . 90 73 . 3 Melee . | . . . . . . Knockbacks . | . . . . . . Impact . | . . . . . . Kinetic . | . . . . . . Secondary . | . . . . . . Self-Inflicted Damage 67 | . . . 67 . . Shots 2 | . . . 2 . . Rammed 4 | . . . 1 1 2 Targets Rammed 4 | . . . 1 1 2 Kicked . | . . . . . . Crushed . | . . . . . . Highest Temperature 1207 | . 537 175 598 439 1207 Average Temperature 143 | . 104 39 160 108 195 Received Heat Transfer 2028 | . 54 309 189 117 1359 Effects 50 | . 3 . 6 1 40 Shutdowns 12 | . 1 . 1 1 9 Energy Bleed 3 | . . . 1 . 2 Interference 8 | . . . . . 8 Matter Decay 7 | . . . 1 . 6 Short Circuit 11 | . 1 . 3 . 7 Damage (minor) 4 | . . . . . 4 Damage (major) 3 | . . . . . 3 Damage (core) 2 | . 1 . . . 1 Siege Activations . | . . . . . . Martial Activations . | . . . . . . Shielding Activations . | . . . . . . Robots Disrupted . | . . . . . . Combat Hostiles . | . . . . . . Robots Corrupted . | . . . . . . Combat Hostiles . | . . . . . . Parts Fried 1 | . . . . . 1 Impact Corruptions . | . . . . . . Robots Melted 3 | . . . . 1 2 Combat Hostiles 3 | . . . . 1 2 Parts Melted 22 | . 2 2 1 1 16 Heat Transferred 13263 | . 1308 1776 814 1147 8218 Parts Sabotaged . | . . . . . . Parts Stolen . | . . . . . . Parts Stripped . | . . . . . . Power Chain Reactions 1 | . . 1 . . . Alert | -11 -10 -9 -8 -7 -6 ------- Run | Yrd Mat Mat Mat Fac Fac Maximum Alert Level 3 | . . 1 2 1 3 Low Security (%) 51 | 100 100 54 61 19 36 Level 1 30 | . . 45 18 80 27 Level 2 4 | . . . 19 . 7 Level 3 13 | . . . . . 28 Level 4 . | . . . . . . Level 5 . | . . . . . . High Security . | . . . . . . Max Security . | . . . . . . Peak Influence 925 | . 111 333 510 272 925 Initial 228 | . . 22 131 228 113 Average 259 | . 22 165 241 226 396 Influence Increases 4205 | . 324 907 631 298 2045 Destroy 0b10 Robot/C 2400 | . 240 340 340 200 1280 Destroy 0b10 Robot/NC 225 | . 15 65 30 10 105 Destroy Leader 652 | . 56 118 94 50 334 Allied During Kill 6 | . . . . 6 . Successful Hack 99 | . 11 23 . 2 63 Disable Machine 315 | . . 90 60 15 150 Destroy Structure 403 | . 2 256 107 . 38 Lose Combat Pursuer 105 | . . 15 . 15 75 Influence Decreases 3292 | . 271 647 442 568 1364 Entered New Map 606 | . . 31 182 274 119 Time Decay 2056 | . 271 566 230 254 735 Lost Part 590 | . . 50 30 . 510 Lost Ally 40 | . . . . 40 . Squads Dispatched 35 | . 1 1 5 2 26 Investigation 4 | . . 1 1 . 2 Extermination 8 | . . . . 1 7 Reinforcement 10 | . 1 . 2 1 6 Assault 3 | . . . . . 3 Garrison 10 | . . . 2 . 8 Intercept . | . . . . . . Searches Triggered . | . . . . . . Construction Impeded 4 | . . . 1 . 3 Haulers Reinforced 2 | . . . . 1 1 Active Scanning Responses . | . . . . . . Cargo Convoy Interrupts . | . . . . . . Stealth | -11 -10 -9 -8 -7 -6 --------- Run | Yrd Mat Mat Mat Fac Fac Distress Signals 2 | . . 1 . . 1 Communications Jammed . | . . . . . . Distress Signals . | . . . . . . Times Spotted 160 | . 18 23 18 11 90 Peak Tracking Total 6 | . 5 4 5 4 6 Tactical Retreats 6 | . . 1 . 1 4 Traps | -11 -10 -9 -8 -7 -6 ------- Run | Yrd Mat Mat Mat Fac Fac Traps Triggered 4 | . . 1 . . 3 Indirectly . | . . . . . . Trap Hack Attempts . | . . . . . . Triggered . | . . . . . . Disarmed . | . . . . . . Reprogrammed . | . . . . . . Reused . | . . . . . . Traps Extracted . | . . . . . . Installed . | . . . . . . Triggered . | . . . . . . Machines | -11 -10 -9 -8 -7 -6 ---------- Run | Yrd Mat Mat Mat Fac Fac Machines Disabled 21 | . . 6 4 1 10 Max in Single Turn 3 | . . 1 2 1 3 Machines Repaired . | . . . . . . Machines Dismantled . | . . . . . . Machines Sabotaged . | . . . . . . Overloaded Fab Kills . | . . . . . . Hacking | -11 -10 -9 -8 -7 -6 --------- Run | Yrd Mat Mat Mat Fac Fac Machines Accessed 38 | . 5 8 5 2 18 Terminals 18 | . 3 7 2 . 6 Fabricators 3 | . . . . 1 2 Repair Stations 5 | . 1 1 1 . 2 Recycling Units 5 | . 1 . . . 4 Scanalyzers 5 | . . . 2 1 2 Garrison Access 2 | . . . . . 2 Total Hacks 114 | . 13 22 26 4 49 Successful 69 | . 7 14 17 2 29 Failed 44 | . 6 8 9 2 19 Catastrophic 6 | . 1 1 . 1 3 Database Lockouts 1 | . . . . . 1 Manual . | . . . . . . Terminals 58 | . 10 21 8 . 19 Fabricators 6 | . . . . 1 5 Repair Stations 7 | . 1 1 2 . 3 Recycling Units 10 | . 2 . . . 8 Scanalyzers 31 | . . . 16 3 12 Garrison Access 2 | . . . . . 2 Terminal Hacks 32 | . 6 14 3 . 9 Record 6 | . . . . . 6 Robot Analysis 1 | . 1 . . . . Prototype ID Bank 2 | . . 2 . . . Branch Access Points 2 | . 1 1 . . . Emergency Access Points 2 | . 1 1 . . . Alert Level 6 | . 1 4 1 . . Locate Traps 5 | . 2 1 1 . 1 Dispatch Records 2 | . . . 1 . 1 Maintenance Status 2 | . . 2 . . . Reinforcement Status 2 | . . 1 . . 1 Zone Layout 2 | . . 2 . . . Fabricator Hacks 2 | . . . . . 2 Network Status 1 | . . . . . 1 Build 1 | . . . . . 1 Repair Station Hacks 2 | . . . . . 2 Scan Component 1 | . . . . . 1 Repair 1 | . . . . . 1 Recycling Unit Hacks 6 | . 1 . . . 5 Report Inventory 4 | . 1 . . . 3 Retrieve Components 2 | . . . . . 2 Scanalyzer 27 | . . . 14 2 11 Insert Component 13 | . . . 7 1 5 Analyze 14 | . . . 7 1 6 Garrison Access Hacks . | . . . . . . Unauthorized Hacks . | . . . . . . Terminals . | . . . . . . Fabricators . | . . . . . . Repair Stations . | . . . . . . Recycling Units . | . . . . . . Scanalyzers . | . . . . . . Garrison Access . | . . . . . . Data Cores Recovered 2 | . . 1 . . 1 Used 1 | . . . . . 1 Hacking Detections 38 | . 5 8 5 2 18 Full Trace Events 1 | . . . 1 . . Feedback Events 1 | . . . 1 . . Corruption 1 | . . . 1 . . Feedback Blocked . | . . . . . . Robot Schematics Acquired . | . . . . . . Robots Built . | . . . . . . Authchips . | . . . . . . Time . | . . . . . . Total Robot Build Rating . | . . . . . . Part Schematics Acquired 13 | . . . 7 1 5 Parts Built 1 | . . . . . 1 Authchips . | . . . . . . Time 53 | . . . . . 53 Total Part Build Rating 6 | . . . . . 6 Parts Repaired 1 | . . . . . 1 Time 70 | . . . . . 70 Parts Recycled . | . . . . . . Recycled Matter . | . . . . . . Retrieved Matter . | . . . . . . Retrieved Components 11 | . . . . . 11 Parts Scanalyzed 13 | . . . 7 1 5 Part Schematics Acquired 13 | . . . 7 1 5 Parts Damaged . | . . . . . . Bothacking | -11 -10 -9 -8 -7 -6 ------------ Run | Yrd Mat Mat Mat Fac Fac Used RIF Installer . | . . . . . . Robots Hacked . | . . . . . . Non-combat . | . . . . . . Combat . | . . . . . . Robot Hacks Applied . | . . . . . . Relay Couplers Released . | . . . . . . Fabnet Peak Effective % . | . . . . . . Robots Rewired 2 | . . . . 2 . Allies Hacked 1 | . . . . 1 . Hacks Repelled . | . . . . . . Allies | -11 -10 -9 -8 -7 -6 -------- Run | Yrd Mat Mat Mat Fac Fac Total Allies 2 | . . . . 2 . Largest Group 2 | . . . . 2 . Highest-Rated Group 28 | . . . . 28 . Highest-Rated Ally 16 | . . . . 16 . Total Orders . | . . . . . . Ally Attacks 10 | . . . . 10 . Total Damage 105 | . . . . 105 . Kills 1 | . . . . 1 . Allies Corrupted . | . . . . . . Allies Melted . | . . . . . . Intel | -11 -10 -9 -8 -7 -6 ------- Run | Yrd Mat Mat Mat Fac Fac Active Infowar (turns) 99 | . 71 . . . 28 Optics 71 | . 71 . . . . Terrain 28 | . . . . . 28 Robot Analysis Total 1 | . 1 . . . . Derelict Logs Recovered . | . . . . . . Drone Launches . | . . . . . . Drone Recoveries . | . . . . . . Exploration | -11 -10 -9 -8 -7 -6 ------------- Run | Yrd Mat Mat Mat Fac Fac Turns Passed 7960 | 84 1111 2029 493 557 3686 Spaces Moved 3224 | 49 441 744 226 253 1511 Core 57 | 10 . . . . 47 Treads 3167 | 39 441 744 226 253 1464 Legs . | . . . . . . Wheels . | . . . . . . Hover . | . . . . . . Flight . | . . . . . . Fastest Speed 50 | 50 160 160 160 161 155 Average Speed 199 | 142 210 239 166 161 190 Slowest Speed 1250 | 160 240 240 170 161 1250 Overloaded Moves . | . . . . . . Propulsion Burnouts . | . . . . . . Robots Hopped . | . . . . . . Potential Cave-ins . | . . . . . . Cave-ins Triggered . | . . . . . . Exploration Rate (%) 33 | 4 60 68 25 8 37 Regions Visited 5 Branch Regions . Pre-discovered Areas . | . . . . . . Known Exits Taken . | . . . . . . Unknown Exits Taken 5 | 1 1 1 1 1 . Scrap Searched . | . . . . . . Spaces Dug . | . . . . . . Terrain Destroyed 472 | . . 322 110 . 40 Melee . | . . . . . . Projectile 25 | . . . . . 25 AOE 446 | . . 322 110 . 14 Terrain Rammed . | . . . . . . Walls Destroyed . | . . . . . . Machines Disabled . | . . . . . . Actions | -11 -10 -9 -8 -7 -6 --------- Run | Yrd Mat Mat Mat Fac Fac Total 4084 | 60 539 877 280 354 1974 Wait 134 | . 8 9 2 14 101 Move 3219 | 48 440 743 225 252 1511 Hop . | . . . . . . Pick Up 126 | 6 20 26 7 10 57 Fast Attach 28 | 6 2 1 . . 19 Attach 52 | . . 7 5 2 38 Detach . | . . . . . . Swap 53 | . 6 8 8 4 27 Drop 79 | . 13 21 6 8 31 Fire 349 | . 50 62 26 23 188 Melee . | . . . . . . Ram . | . . . . . . Kick . | . . . . . . Crush 4 | . . . 1 1 2 Escape Stasis . | . . . . . . Rewire 40 | . . . . 40 . Trap . | . . . . . . Miscellaneous . | . . . . . . Route ------- -11/Scrapyard -10/Materials (discovered 2 exits: *Mat / *Min) -9/Materials (discovered 2 exits: *Mat / Min) -8/Materials -7/Factory -6/Factory History --------- Turn | Location | Event 6 | -11/Scrapyard | Discovered new exit (range 16) 85 | -11/Scrapyard | Entered Materials 334 | -10/Materials | Build established: Mutant 375 | -10/Materials | Discovered new exit (range 12) 612 | -10/Materials | Discovered new exit (range 11) 750 | -10/Materials | Identified exit to Mines 1196 | -10/Materials | Entered another Materials area 1196 | -9/Materials | Evolved 2 slots: Utility x2 1662 | -9/Materials | Lost 3 parts (1p1u1w) 2227 | -9/Materials | Identified exit to Mines 3143 | -9/Materials | Discovered new exit (range 8) 3225 | -9/Materials | Entered another Materials area 3225 | -8/Materials | Evolved 2 slots: Propulsion x1, Weapon x1 3508 | -8/Materials | Garrison activated, responded to threat 3600 | -8/Materials | Discovered new exit (range 16) 3610 | -8/Materials | Garrison activated, responded to threat 3637 | -8/Materials | Build established: Gunner 3718 | -8/Materials | Entered Factory 3718 | -7/Factory | Evolved 2 slots: Power x1, Utility x1 4225 | -7/Factory | Discovered new exit (range 8) 4275 | -7/Factory | Entered another Factory area 4275 | -6/Factory | Evolved 2 slots: Utility x2 4352 | -6/Factory | Spotted B-75 Beast 4398 | -6/Factory | Destroyed B-75 Beast 4425 | -6/Factory | Lost 4 parts (2p1u1w) 4435 | -6/Factory | Garrison activated, responded to threat 4489 | -6/Factory | Lost 7 parts (3n2u2w) 4720 | -6/Factory | Build established: Scavenger-Gunner 5026 | -6/Factory | Central database locked down 5420 | -6/Factory | Build established: Gunner 5736 | -6/Factory | Fabricated Hvy. Shock Bomb Launcher? 5857 | -6/Factory | Lost 6 parts (1p2n1u2w) 5995 | -6/Factory | Repaired Broken Imp. Medium Treads 6615 | -6/Factory | Garrison activated, responded to threat 6674 | -6/Factory | Lost 5 parts (1p3u1w) 6678 | -6/Factory | Destroyed 7 combat bots 6715 | -6/Factory | Garrison activated, responded to threat 6831 | -6/Factory | Core integrity fell below 50% 6922 | -6/Factory | Build established: Scavenger-Gunner 7011 | -6/Factory | Lost 9 parts (1p6n2u) 7242 | -6/Factory | Build established: Gunner 7333 | -6/Factory | Core integrity fell below 20% 7425 | -6/Factory | First assault squad dispatched 7559 | -6/Factory | System corruption reached 10% 7567 | -6/Factory | System corruption reached 30% 7597 | -6/Factory | Lost 11 parts (2p6u3w) 7870 | -6/Factory | Garrison activated, responded to threat 7961 | -6/Factory | Destroyed by G-67 Veteran with Field Laser Last Messages --------------- Acquired Lgt. Ion Engine. Acquired 23 matter. Acquired Unknown Device. Identified Terrain Scanner. R-10 Processor collects Wheel. Acquired 7 matter. R-10 Processor collects Corrupted Imp. Deuterium Engine. Triggered Blade Trap. Massive razor-sharp blades shoot up from within the floor. Hyp. Gauss Rifle severed. Lgt. Treads severed. Acquired Lgt. Treads. Acquired Hyp. Gauss Rifle. System corrupted: Component data lost. C-30 ARC bursts open, deploying its payload. G-67 Veteran unfolds itself. G-50 Soldier unfolds itself. Hyp. Gauss Rifle destroyed. Map ----- +----------------------------------------------------+ | # #?????????????????????????????????????? | | # #?????????????????????????????????????? | | # #?????????????????????????????????????? | | ###+###########????????????????????????????????? | | #????????????????????????????????? | | #????????????????????????????????? | | ##############???????????????????? | | # #???????????????????? | | # "" #???????????????????? | | ########### # """ #???????????????????? | | # # # T" #???????????????????? | | # # + """ """ #???????????????????? | | # + # """ "" #???????????????????? | | # # + """ #???????????????????? | | # # # "" #???????????????????? | | # """# # "" #???????????????????? | | # """##### # #???????????????????? | | # """#???# # #???????????????????? | | # ""#???# # #???????????????????? | | ##### ""#???#[##############???????????????????? | | #???# ?????#=#????????????????????????????????? | | #???# ?????#[#????????????????????????????????? | | #???######????#%#????????????????????????????????? | | #???### #????#[#????????????????????????????????? | | #######! ######%####################+????????????? | | // % !==/=%=gg @ ????????? | | / % %==!=gg ^ ????????? | | = !%* ????????? | | ?????????? | | ?????????? | | t ! ^ ??????????? | | " ! ^ ??????????? | | " ###;#######################??????????? | | " #?###???????????????????????????####?? | | % #################################T ### | | | | ^^ | | " ^ | | %""" | | % G = | | %""" *[ | | " [% | | % ###+#################+############ | | # #?# #??# | | ### % + """ """ #?# """ """ #??# | | # #### """ """ #?# """ """ #??# | | ### #??# """ """ #?# """ """ #??# | | #?# #??# #?# "" "" #??# | | #?# #??# """ """ #?# "" "" #??# | | #?# #??# ! """ """ #?# #??# | +----------------------------------------------------+ Best States ------------- Heat Dissipation 102 Coolant Potential 65 Energy Generation 44 Energy Capacity 1540 Matter Stores 400 Matter Capacity 400 Sight Range 18 Terrain Scan Range 14 Terrain Scan Density 10 Power Amplification 20 Weapon Cycling 30 Evasion (%) 40 Targeting Accuracy 8 Target Analysis 5 Recoil Reduction 3 Matter Filtering 30 Energy Filtering 30 Particle Charging 20 Item Schematics ----------------- Adv. Treads | -8/Materials | Scanalyzed Cld. Ion Engine | -8/Materials | Scanalyzed Adv. Targeting Computer | -8/Materials | Scanalyzed Hpw. Tractor Beam | -8/Materials | Scanalyzed Hvy. Assault Rifle | -8/Materials | Scanalyzed Adv. Beam Cannon | -8/Materials | Scanalyzed Imp. Heat Sink | -8/Materials | Scanalyzed Target Analyzer | -7/Factory | Scanalyzed Shock Rifle | -6/Factory | Scanalyzed Imp. Cooling System | -6/Factory | Scanalyzed Lgt. Treads | -6/Factory | Scanalyzed Imp. Deuterium Engine | -6/Factory | Scanalyzed Hvy. Plasma Cannon | -6/Factory | Scanalyzed Robot Schematics ------------------ None Fabricated ------------ Hvy. Shock Bomb Launcher | x1 | -6/Factory | Preloaded Repaired ---------- Imp. Medium Treads | 37% | -6/Factory | Broken Alien Tech Used ----------------- None Achievements -------------- None Challenges ------------ None Game ------ Seed SuperchargedGravmagStripper Manual? 0 Play Time 01:32:34 Cumulative 44.0 hours Start 2025.09.26 @ 16:17:53 End 2025.09.26 @ 17:52:59 Sessions 1 Manual Loads 0 Difficulty Rogue Special Mode None Game No. 68 Rogue 68 Adventurer 0 Explorer 0 Win Type - Total 0 Types 0/0/0/0/0/0/0/0/0/0 Lore% 21 Gallery% 33 Achievement% 27 Wizard Run 0 Options --------- Layout 1 ASCII 0 Keyboard 0 Movement Numpad Keybinds 0 Fullscreen 1 Font 24/Smallcaps Map View 50x35 Zoom Use 0% Tactical HUD 0 Map Filters NONE Filters NONE Steam 1 RUN: 67cdbb7d-db99-40c9-a85f-2dde3c22d272